fUST/lending_fUST_20250605
["ID","MTS","AMOUNT","RATE_DAILY","PERIOD"]
[364278694,1749057039547,-440.0,0.00016986,2]
[364278696,1749057039558,-440.0,0.00016986,2]
[364278698,1749057039569,-440.0,0.00016986,2]
[364278700,1749057039579,-440.0,0.00016986,2]
[364278702,1749057039590,-440.0,0.00016986,2]
[364278704,1749057039599,-440.0,0.00016986,2]
[364278706,1749057039609,-435.65984197,0.00016986,2]
[364278708,1749057039619,-440.0,0.00016986,2]
[364278710,1749057039630,-440.0,0.00016986,2]
[364278712,1749057039639,-440.0,0.00016986,2]
[364278714,1749057039649,-513.09,0.00016986,2]
[364278716,1749057039659,-440.0,0.00016986,2]
[364278718,1749057039669,-440.0,0.00016986,2]
[364278720,1749057039678,-440.0,0.00016986,2]
[364278722,1749057039687,-440.0,0.00016986,2]
[364278724,1749057039697,-440.0,0.00016986,2]
[364278726,1749057039706,-440.0,0.00016986,2]
[364278728,1749057039715,-440.0,0.00016986,2]
[364278730,1749057039725,-440.0,0.00016986,2]
[364278732,1749057039735,-440.0,0.00016986,2]
[364278734,1749057039743,-410.0,0.00016986,2]
[364278736,1749057039753,-440.0,0.00016986,2]
[364278738,1749057039763,-440.0,0.00016986,2]
[364278740,1749057039772,-440.0,0.00016986,2]
[364278742,1749057039782,-440.0,0.00016986,2]
[364278744,1749057039791,-440.0,0.00016986,2]
[364278746,1749057039801,-440.0,0.00016986,2]
[364278748,1749057039811,-356.99,0.00016986,2]
[364278750,1749057039820,-440.0,0.00016986,2]
[364278752,1749057039830,-440.0,0.00016986,2]
[364278754,1749057039840,-500.13125832,0.0001711,2]
[364278756,1749057039849,-500.0,0.00017259,2]
[364278758,1749057039858,-500.0,0.00017259,2]
[364278760,1749057039868,-405.10432001,0.00017259,2]
[364278762,1749057039880,-487.09749478,0.00017259,2]
[364278764,1749057039891,-500.0,0.00017259,2]
[364278766,1749057039900,-440.0,0.00017259,2]
[364278768,1749057039910,-440.0,0.00017259,2]
[364278770,1749057039919,-420.0,0.00017259,2]
[364278772,1749057039928,-440.0,0.00017259,2]
[364278774,1749057039939,-440.0,0.00017259,2]
[364278776,1749057039948,-440.0,0.00017259,2]
[364278778,1749057039962,-440.0,0.00017259,2]
[364278780,1749057039971,-440.0,0.00017259,2]
[364278782,1749057039981,-173.35401133,0.00017259,2]
[364278784,1749057039990,-440.0,0.00017259,2]
[364278786,1749057039999,-440.0,0.00017259,2]
[364278788,1749057040008,-444.464875,0.0001726,2]
[364278790,1749057040017,-359.7085996,0.0001726,2]
[364278792,1749057040026,-440.0,0.0001726,2]
[364278794,1749057040039,-440.0,0.0001726,2]
[364278796,1749057040048,-440.0,0.0001726,2]
[364278798,1749057040057,-440.0,0.0001726,2]
[364278800,1749057040067,-440.0,0.0001726,2]
[364278802,1749057040076,-440.0,0.0001726,2]
[364278804,1749057040086,-418.6292932,0.0001726,2]
[364278806,1749057040095,-440.0,0.0001726,2]
[364278807,1749057040104,-440.0,0.0001726,2]
[364278809,1749057040113,-400.0,0.0001726,2]
[364278811,1749057040123,-440.0,0.0001726,2]
[364278813,1749057040132,-400.0,0.0001726,2]
[364278815,1749057040142,-22.62435619,0.0001726,2]
[364278818,1749057040157,-377.37564381,0.0001726,2]
[364278820,1749057040167,-254.1875949,0.0001726,2]
[364278822,1749057040177,-440.0,0.0001726,2]
[364278824,1749057040186,-440.0,0.0001726,2]
[364278826,1749057040196,-422.24892255,0.0001726,2]
[364278828,1749057040206,-440.0,0.0001726,2]
[364278830,1749057040215,-411.52955834,0.0001726,2]
[364278832,1749057040225,-440.0,0.0001726,2]
[364278834,1749057040234,-440.0,0.0001726,2]
[364278836,1749057040243,-440.0,0.0001726,2]
[364278838,1749057040252,-440.0,0.0001726,2]
[364278840,1749057040262,-440.0,0.0001726,2]
[364278842,1749057040271,-440.0,0.0001726,2]
[364278844,1749057040281,-440.0,0.0001726,2]
[364278846,1749057040291,-440.0,0.0001726,2]
[364278849,1749057040301,-440.0,0.0001726,2]
[364278850,1749057040310,-440.0,0.0001726,2]
[364278852,1749057040319,-440.0,0.0001726,2]
[364278855,1749057040330,-440.0,0.0001726,2]
[364278857,1749057040339,-440.0,0.0001726,2]
[364278859,1749057040349,-440.0,0.0001726,2]
[364278861,1749057040359,-440.0,0.0001726,2]
[364278863,1749057040368,-440.0,0.0001726,2]
[364278865,1749057040380,-410.0,0.00017533,2]
[364278867,1749057040390,-440.0,0.00017533,2]
[364278870,1749057040399,-440.0,0.00017533,2]
[364278872,1749057040409,-410.0,0.00017533,2]
[364278874,1749057040418,-440.0,0.00017533,2]
[364278876,1749057040427,-440.0,0.00017533,2]
[364278878,1749057040437,-440.0,0.00017533,2]
[364278880,1749057040446,-440.0,0.00017533,2]
[364278882,1749057040455,-440.0,0.00017533,2]
[364278884,1749057040465,-440.0,0.00017534,2]
[364278886,1749057040474,-440.0,0.00017534,2]
[364278888,1749057040483,-440.0,0.00017534,2]
[364278890,1749057040493,-440.0,0.00017534,2]
[364278892,1749057040503,-440.0,0.00017534,2]
[364278894,1749057040512,-440.0,0.00017534,2]
[364278896,1749057040522,-440.0,0.00017534,2]
[364278898,1749057040531,-440.0,0.00017534,2]
[364278900,1749057040541,-390.0,0.00017534,2]
[364278902,1749057040551,-440.0,0.00017534,2]
[364278904,1749057040559,-374.21574377,0.00017534,2]
[364278906,1749057040569,-440.0,0.00017534,2]
[364278908,1749057040578,-390.0,0.00017534,2]
[364278910,1749057040590,-198.50306009,0.00017534,2]
[364278912,1749057040599,-501.88979646,0.00017534,2]
[364278914,1749057040608,-440.0,0.00017534,2]
[364278916,1749057040618,-440.0,0.00017534,2]
[364278918,1749057040628,-440.0,0.00017534,2]
[364278920,1749057040638,-440.0,0.00017534,2]
[364278922,1749057040647,-390.0,0.00017534,2]
[364278924,1749057040656,-440.0,0.00017534,2]
[364278926,1749057040666,-390.0,0.00017534,2]
[364278939,1749057040778,-557.08,0.00017534,2]
[364278941,1749057040788,-440.0,0.00017534,2]
[364278943,1749057040798,-390.0,0.00017534,2]
[364278945,1749057040807,-440.0,0.00017534,2]
[364278947,1749057040816,-440.0,0.00017534,2]
[364278949,1749057040826,-440.0,0.00017534,2]
[364278951,1749057040835,-500.0,0.00017671,2]
[364278953,1749057040844,-500.86651381,0.00017675,2]
[364278955,1749057040853,-500.0,0.00017729,2]
[364278957,1749057040863,-500.0,0.00017729,2]
[364278959,1749057040874,-500.0,0.00017729,2]
[364278961,1749057040883,-500.0,0.00017767,2]
[364278963,1749057040893,-440.0,0.00017807,2]
[364278965,1749057040904,-440.0,0.00017807,2]
[364278967,1749057040914,-440.0,0.00017807,2]
[364278969,1749057040924,-440.0,0.00017807,2]
[364278971,1749057040933,-373.87,0.00017807,2]
[364278973,1749057040943,-440.0,0.00017807,2]
[364278975,1749057040954,-440.0,0.00017807,2]
[364278977,1749057040966,-380.0,0.00017808,2]
[364278980,1749057040976,-440.0,0.00017808,2]
[364278982,1749057040986,-307.88225952,0.00017808,2]
[364278983,1749057040995,-440.0,0.00017808,2]
[364278985,1749057041006,-183.28,0.00017808,2]
[364278987,1749057041016,-440.0,0.00017808,2]
[364278989,1749057041025,-440.0,0.00017808,2]
[364278991,1749057041037,-440.0,0.00017808,2]
[364278993,1749057041047,-380.0,0.00017808,2]
[364278995,1749057041057,-380.0,0.00017808,2]
[364278997,1749057041066,-410.43142323,0.00017808,2]
[364278999,1749057041075,-380.0,0.00017808,2]
[364279001,1749057041083,-380.0,0.00017808,2]
[364279003,1749057041093,-299.96,0.00017808,2]
[364279005,1749057041102,-440.0,0.00017808,2]
[364279007,1749057041111,-380.0,0.00017808,2]
[364279009,1749057041120,-430.66066734,0.00017808,2]
[364279011,1749057041132,-440.0,0.00017808,2]
[364279013,1749057041142,-440.0,0.00017808,2]
[364279015,1749057041151,-388.76907567,0.00017845,2]
[364279017,1749057041160,-420.0,0.00017963,2]
[364279019,1749057041170,-420.0,0.00017963,2]
[364279021,1749057041180,-420.0,0.00017963,2]
[364279023,1749057041190,-1680.0,0.00018052,2]
[364279025,1749057041200,-155.372,0.0001807,2]
[364279027,1749057041209,-160.0,0.00018073,2]
[364279029,1749057041219,-440.0,0.00018081,2]
[364279031,1749057041228,-440.0,0.00018081,2]
[364279033,1749057041237,-440.0,0.00018081,2]
[364279035,1749057041248,-440.0,0.00018081,2]
[364279038,1749057041257,-440.0,0.00018081,2]
[364279039,1749057041267,-390.0,0.00018081,2]
[364279042,1749057041277,-440.0,0.00018082,2]
[364279044,1749057041287,-440.0,0.00018082,2]
[364279045,1749057041296,-440.0,0.00018082,2]
[364279047,1749057041306,-440.0,0.00018082,2]
[364279050,1749057041316,-440.0,0.00018082,2]
[364279052,1749057041325,-440.0,0.00018082,2]
[364279054,1749057041334,-440.0,0.00018082,2]
[364279056,1749057041344,-440.0,0.00018082,2]
[364279058,1749057041354,-440.0,0.00018355,2]
[364279060,1749057041364,-380.0,0.00018355,2]
[364279061,1749057041374,-380.0,0.00018355,2]
[364279064,1749057041384,-395.71113709,0.00018355,2]
[364279066,1749057041394,-380.0,0.00018355,2]
[364279068,1749057041403,-440.0,0.00018356,2]
[364279070,1749057041413,-490.58,0.00018356,2]
[364279072,1749057041422,-440.0,0.00018356,2]
[364279074,1749057041431,-440.0,0.00018356,2]
[364279076,1749057041441,-440.0,0.00018356,2]
[364279078,1749057041450,-440.0,0.00018356,2]
[364279079,1749057041460,-440.0,0.00018356,2]
[364279081,1749057041469,-440.0,0.00018356,2]
[364279084,1749057041479,-440.0,0.00018629,2]
[364279085,1749057041488,-440.0,0.0001863,2]
[364279088,1749057041497,-440.0,0.0001863,2]
[364279090,1749057041507,-440.0,0.0001863,2]
[364279092,1749057041517,-440.0,0.0001863,2]
[364279094,1749057041527,-440.0,0.0001863,2]
[364279096,1749057041536,-440.0,0.0001863,2]
[364279098,1749057041545,-440.0,0.0001863,2]
[364279100,1749057041555,-264.31,0.00018894,3]
[364279102,1749057041564,-843.93448134,0.000189,2]
[364279104,1749057041573,-440.0,0.00018903,2]
[364279106,1749057041583,-440.0,0.00018904,2]
[364279108,1749057041592,-440.0,0.00018904,2]
[364279110,1749057041602,-440.0,0.00018904,2]
[364279112,1749057041612,-440.0,0.00018904,2]
[364279114,1749057041621,-186.67,0.00018904,2]
[364279116,1749057041632,-307.76,0.00018904,2]
[364279118,1749057041642,-455.32,0.00018904,2]
[364279120,1749057041651,-160.0,0.00019038,2]
[364279122,1749057041661,-842.5625,0.00019038,2]
[364279124,1749057041671,-160.0,0.00019038,2]
[364279126,1749057041681,-160.0,0.00019038,2]
[364279128,1749057041690,-423.69433488,0.00019038,2]
[364279130,1749057041699,-229.45591648,0.00019038,2]
[364279132,1749057041709,-792.94,0.00019068,3]
[364279134,1749057041719,-175.37431229,0.00019078,2]
[364279136,1749057041728,-388.76907567,0.00019078,2]
[364279138,1749057041737,-440.0,0.00019177,2]
[364279140,1749057041747,-400.0,0.00019178,2]
[364279142,1749057041757,-540.39,0.00019178,2]
[364279144,1749057041766,-545.2719895,0.00019178,2]
[364279146,1749057041776,-545.2719895,0.00019178,2]
[364279148,1749057041786,-545.2719895,0.00019178,2]
[364279150,1749057041796,-545.2719895,0.00019178,2]
[364279152,1749057041806,-545.2719895,0.00019178,2]
[364279154,1749057041815,-545.2719895,0.00019178,2]
[364279156,1749057041824,-545.2719895,0.00019178,2]
[364279158,1749057041833,-545.2719895,0.00019178,2]
[364279160,1749057041843,-545.2719895,0.00019178,2]
[364279162,1749057041852,-545.2719895,0.00019178,2]
[364279164,1749057041862,-545.2719895,0.00019178,2]
[364279166,1749057041871,-545.2719895,0.00019178,2]
[364279168,1749057041882,-545.2719895,0.00019178,2]
[364279170,1749057041891,-545.2719895,0.00019178,2]
[364279171,1749057041900,-545.2719895,0.00019178,2]
[364279174,1749057041910,-545.2719895,0.00019178,2]
[364279176,1749057041920,-545.2719895,0.00019178,2]
[364279178,1749057041930,-545.2719895,0.00019178,2]
[364279180,1749057041939,-545.2719895,0.00019178,2]
[364279182,1749057041949,-545.2719895,0.00019178,2]
[364279184,1749057041964,-545.2719895,0.00019178,2]
[364279186,1749057041973,-545.2719895,0.00019178,2]
[364279188,1749057041983,-545.2719895,0.00019178,2]
[364279190,1749057041993,-545.2719895,0.00019178,2]
[364279192,1749057042003,-545.2719895,0.00019178,2]
[364279194,1749057042013,-545.2719895,0.00019178,2]
[364279196,1749057042022,-545.2719895,0.00019178,2]
[364279198,1749057042032,-545.2719895,0.00019178,2]
[364279200,1749057042043,-545.2719895,0.00019178,2]
[364279202,1749057042052,-545.2719895,0.00019178,2]
[364279204,1749057042062,-545.2719895,0.00019178,2]
[364279206,1749057042071,-545.2719895,0.00019178,2]
[364279208,1749057042080,-545.2719895,0.00019178,2]
[364279210,1749057042090,-545.2719895,0.00019178,2]
[364279212,1749057042099,-545.2719895,0.00019178,2]
[364279214,1749057042109,-545.2719895,0.00019178,2]
[364279215,1749057042120,-545.2719895,0.00019178,2]
[364279217,1749057042131,-545.2719895,0.00019178,2]
[364279219,1749057042140,-545.2719895,0.00019178,2]
[364279221,1749057042150,-545.2719895,0.00019178,2]
[364279223,1749057042160,-545.2719895,0.00019178,2]
[364279226,1749057042170,-545.2719895,0.00019178,2]
[364279228,1749057042180,-545.2719895,0.00019178,2]
[364279229,1749057042191,-545.2719895,0.00019178,2]
[364279231,1749057042200,-545.2719895,0.00019178,2]
[364279233,1749057042210,-545.2719895,0.00019178,2]
[364279235,1749057042221,-545.2719895,0.00019178,2]
[364279238,1749057042230,-545.2719895,0.00019178,2]
[364279239,1749057042240,-545.2719895,0.00019178,2]
[364279242,1749057042249,-545.2719895,0.00019178,2]
[364279244,1749057042260,-545.2719895,0.00019178,2]
[364279246,1749057042270,-545.2719895,0.00019178,2]
[364279247,1749057042280,-545.2719895,0.00019178,2]
[364279249,1749057042290,-545.2719895,0.00019178,2]
[364279252,1749057042299,-545.2719895,0.00019178,2]
[364279253,1749057042309,-545.2719895,0.00019178,2]
[364279255,1749057042319,-885.73450001,0.00019178,2]
[364279258,1749057042330,-885.73450001,0.00019178,2]
[364279260,1749057042340,-885.73450001,0.00019178,2]
[364279262,1749057042350,-885.73450001,0.00019178,2]
[364279264,1749057042360,-885.73450001,0.00019178,2]
[364279266,1749057042370,-885.73450001,0.00019178,2]
[364279268,1749057042385,-885.73450001,0.00019178,2]
[364279270,1749057042395,-885.73450001,0.00019178,2]
[364279271,1749057042406,-885.73450001,0.00019178,2]
[364279274,1749057042422,-885.73450001,0.00019178,2]
[364279276,1749057042433,-885.73450001,0.00019178,2]
[364279278,1749057042443,-885.73450001,0.00019178,2]
[364279280,1749057042453,-885.73450001,0.00019178,2]
[364279282,1749057042463,-885.73450001,0.00019178,2]
[364279284,1749057042473,-885.73450001,0.00019178,2]
[364279287,1749057042483,-885.73450001,0.00019178,2]
[364279289,1749057042493,-885.73450001,0.00019178,2]
[364279291,1749057042503,-885.73450001,0.00019178,2]
[364279293,1749057042513,-885.73450001,0.00019178,2]
[364279295,1749057042523,-885.73450001,0.00019178,2]
[364279298,1749057042537,-885.73450001,0.00019178,2]
[364279300,1749057042547,-885.73450001,0.00019178,2]
[364279302,1749057042557,-885.73450001,0.00019178,2]
[364279304,1749057042568,-885.73450001,0.00019178,2]
[364279306,1749057042578,-885.73450001,0.00019178,2]
[364279308,1749057042588,-885.73450001,0.00019178,2]
[364279311,1749057042598,-885.73450001,0.00019178,2]
[364279314,1749057042607,-885.73450001,0.00019178,2]
[364279317,1749057042617,-885.73450001,0.00019178,2]
[364279319,1749057042628,-885.73450007,0.00019178,2]
[364279322,1749057042638,-885.73450007,0.00019178,2]
[364279325,1749057042648,-440.0,0.00019178,2]
[364279328,1749057042658,-440.0,0.00019178,2]
[364279330,1749057042669,-440.0,0.00019178,2]
[364279332,1749057042678,-440.0,0.00019178,2]
[364279334,1749057042688,-179.427373,0.00019178,2]
[364279336,1749057042698,-440.0,0.00019451,2]
[364279338,1749057042709,-501.68464478,0.00019452,2]
[364279340,1749057042720,-440.0,0.00019452,2]
[364279342,1749057042730,-440.0,0.00019452,2]
[364279344,1749057042740,-440.0,0.00019452,2]
[364279346,1749057042750,-440.0,0.00019725,2]
[364279348,1749057042759,-440.0,0.00019726,2]
[364279350,1749057042770,-440.0,0.00019726,2]
[364279352,1749057042779,-440.0,0.00019726,2]
[364279354,1749057042789,-173.443,0.00019806,2]
[364279356,1749057042800,-440.0,0.00019999,2]
[364279358,1749057042810,-440.0,0.0002,2]
[364279360,1749057042820,-440.0,0.0002,2]
[364279362,1749057042830,-440.0,0.0002,2]
[364279364,1749057042841,-1400.0,0.00020068,2]
[364279366,1749057042852,-528.62,0.00020264,3]
[364279368,1749057042862,-440.0,0.00020273,2]
[364279370,1749057042874,-251.57,0.00020273,2]
[364279372,1749057042884,-190.75,0.00020273,2]
[364279374,1749057042893,-440.0,0.00020273,2]
[364279376,1749057042903,-440.0,0.00020547,2]
[364279379,1749057042913,-509.22,0.00020547,2]
[364279381,1749057042923,-645.71380047,0.00020548,2]
[364279383,1749057042933,-432.21,0.000206,2]
[364279385,1749057042942,-991.63,0.000206,2]
[364279387,1749057042952,-440.0,0.00020821,2]
[364279389,1749057042967,-355.1724634,0.00021095,2]
[364279391,1749057042977,-1400.0,0.00021164,2]
[364279393,1749057042987,-550.07,0.00021917,2]
[364279395,1749057042997,-500.0,0.00021917,2]
[364279397,1749057043008,-160.0,0.00021973,3]
[364279399,1749057043018,-1895.31327686,0.00022168,2]
[364279401,1749057043029,-151.0,0.00022168,2]
[364279403,1749057043039,-207.4,0.00022168,2]
[364279405,1749057043049,-500.0,0.00022168,2]
[364279407,1749057043059,-500.0,0.00022168,2]
[364279409,1749057043069,-500.0,0.00022168,2]
[364279411,1749057043079,-500.0,0.00022168,2]
[364279413,1749057043088,-5000.0,0.00022168,2]
[364279415,1749057043098,-500.0,0.00022168,2]
[364279417,1749057043108,-500.0,0.00022168,2]
[364279419,1749057043119,-500.0,0.00022168,2]
[364279421,1749057043130,-500.0,0.00022168,2]
[364279423,1749057043141,-500.0,0.00022168,2]
[364279425,1749057043151,-500.0,0.00022168,2]
[364279427,1749057043161,-500.0,0.00022168,2]
[364279429,1749057043171,-500.0,0.00022168,2]
[364279431,1749057043182,-500.0,0.00022168,2]
[364279433,1749057043192,-500.0,0.00022168,2]
[364279435,1749057043202,-500.0,0.00022168,2]
[364279437,1749057043212,-151.0,0.000222,5]
[364279439,1749057043222,-1400.0,0.0002226,2]
[364279441,1749057043233,-991.63,0.000223,7]
[364279443,1749057043244,-5094.0,0.00022386,2]
[364279445,1749057043254,-500.0,0.00022465,2]
[364279447,1749057043264,-158.575084,0.00022521,2]
[364279449,1749057043274,-353.2075706,0.00022521,2]
[364279450,1749057043284,-1145.4394388,0.00022521,2]
[364279452,1749057043294,-158.575084,0.00022521,2]
[364279455,1749057043304,-176.6037853,0.00022521,2]
[364279456,1749057043314,-158.575084,0.00022521,2]
[364279459,1749057043324,-158.575084,0.00022521,2]
[364279461,1749057043334,-151.0,0.00022631,2]
[364279463,1749057043346,-152.63117165,0.00022631,2]
[364279465,1749057043362,-500.0,0.00022631,2]
[364279466,1749057043374,-500.0,0.00022631,2]
[364279468,1749057043385,-151.0,0.00022631,2]
[364279471,1749057043395,-151.0,0.00022658,2]
[364279472,1749057043405,-500.0,0.00022658,2]
[364279474,1749057043415,-500.0,0.00022658,2]
[364279476,1749057043425,-151.0,0.00022658,2]
[364279478,1749057043436,-5000.0,0.00022684,2]
[364279480,1749057043446,-151.0,0.00022686,2]
[364279483,1749057043457,-500.0,0.00022686,2]
[364279485,1749057043467,-500.0,0.00022686,2]
[364279487,1749057043478,-151.0,0.00022686,2]
[364279488,1749057043488,-151.0,0.00022713,2]
[364279489,1749057043497,-500.0,0.00022713,2]
[364279490,1749057043512,-500.0,0.00022713,2]
[364279491,1749057043521,-209.0,0.00022713,2]
[364279492,1749057043531,-5000.0,0.00022716,2]
[364279493,1749057043541,-204.59836485,0.00022741,2]
[364279494,1749057043551,-500.0,0.00022741,2]
[364279495,1749057043561,-500.0,0.00022741,2]
[364279496,1749057043571,-500.0,0.00022768,2]
[364279497,1749057043586,-500.0,0.00022768,2]
[364279498,1749057043596,-500.0,0.00022795,2]
[364279499,1749057043606,-500.0,0.00022795,2]
[364279500,1749057043617,-151.0,0.000228,8]
[364279501,1749057043627,-500.0,0.00022823,2]
[364279502,1749057043637,-500.0,0.00022823,2]
[364279503,1749057043647,-500.0,0.0002285,2]
[364279513,1749057043751,-194.92254447,0.0002285,2]
[364279515,1749057043761,-500.0,0.00022878,2]
[364279517,1749057043770,-432.21,0.000229,7]
[364279519,1749057043782,-531.27793115,0.00022905,2]
[364279521,1749057043792,-500.0,0.00022967,2]
[364279523,1749057043801,-500.0,0.00022967,2]
[364279525,1749057043811,-500.0,0.00022967,2]
[364279527,1749057043822,-500.0,0.00022967,2]
[364279529,1749057043832,-600.0,0.00022967,2]
[364279531,1749057043841,-5000.0,0.00022988,2]
[364279533,1749057043851,-364.5816698,0.00023205,2]
[364279535,1749057043860,-364.5816698,0.00023205,2]
[364279537,1749057043870,-350.0488404,0.00023205,2]
[364279539,1749057043881,-5000.0,0.00023248,3]
[364279541,1749057043890,-600.0,0.0002325,2]
[364279543,1749057043900,-5000.0,0.00023264,2]
[364279545,1749057043910,-225.51,0.00023287,2]
[364279547,1749057043919,-225.51,0.00023287,2]
[364279549,1749057043932,-225.51,0.00023287,2]
[364279551,1749057043942,-225.51,0.00023287,2]
[364279553,1749057043951,-225.51,0.00023287,2]
[364279555,1749057043964,-225.51,0.00023287,2]
[364279557,1749057043974,-225.51,0.00023287,2]
[364279559,1749057043983,-225.51,0.00023287,2]
[364279561,1749057043993,-225.51,0.00023287,2]
[364279563,1749057044003,-225.51,0.00023287,2]
[364279565,1749057044012,-225.51,0.00023287,2]
[364279567,1749057044022,-225.51,0.00023287,2]
[364279569,1749057044032,-225.51,0.00023287,2]
[364279571,1749057044043,-225.51,0.00023287,2]
[364279573,1749057044052,-225.51,0.00023287,2]
[364279574,1749057044063,-225.51,0.00023287,2]
[364279577,1749057044073,-225.51,0.00023287,2]
[364279579,1749057044084,-225.51,0.00023287,2]
[364279581,1749057044094,-225.51,0.00023287,2]
[364279583,1749057044104,-225.51,0.00023287,2]
[364279585,1749057044114,-225.51,0.00023287,2]
[364279587,1749057044124,-225.51,0.00023287,2]
[364279589,1749057044133,-225.51,0.00023287,2]
[364279590,1749057044142,-225.56,0.00023287,2]
[364279592,1749057044152,-956.162843,0.00023323,3]
[364279594,1749057044161,-153.0,0.00023342,2]
[364279596,1749057044171,-572.7197194,0.00023342,2]
[364279599,1749057044181,-153.0,0.00023342,2]
[364279601,1749057044191,-1400.0,0.00023356,2]
[364279603,1749057044201,-151.0,0.000234,7]
[364279604,1749057044210,-235.529,0.00023467,2]
[364279606,1749057044220,-250.0,0.00023467,2]
[364279608,1749057044230,-152.115,0.00023467,2]
[364279610,1749057044239,-216.455,0.00023467,2]
[364279612,1749057044249,-962.0,0.00023467,2]
[364279615,1749057044259,-2225.0,0.00023467,2]
[364279617,1749057044269,-708.0,0.00023467,2]
[364279619,1749057044278,-405.0,0.00023467,2]
[364279620,1749057044287,-5000.0,0.00023488,3]
[364279622,1749057044297,-12668.79298183,0.0002349,3]
[364279625,1749057044307,-600.0,0.00023492,2]
[364279627,1749057044316,-218.60636307,0.00023507,2]
[364279629,1749057044326,-2200.0,0.00023514,2]
[364279631,1749057044336,-1000.0,0.00023515,2]
[364279633,1749057044348,-1000.0,0.00023515,2]
[364279635,1749057044359,-1000.0,0.00023515,2]
[364279636,1749057044369,-1000.0,0.00023515,2]
[364279638,1749057044379,-1200.0,0.00023515,2]
[364279640,1749057044390,-215.0738,0.00023537,2]
[364279643,1749057044400,-218.60636307,0.00023616,2]
[364279644,1749057044410,-429.6268367,0.00023616,2]
[364279647,1749057044421,-306.0,0.00023616,2]
[364279649,1749057044430,-218.60636307,0.00023753,2]
[364279651,1749057044441,-167084.79361399,0.00023768,2]
[364279689,1749057044816,-41539.40228349,0.00023768,2]
[364279692,1749057044827,-5000.0,0.00023768,3]
[364279693,1749057044837,-500.0,0.00023773,2]
[364279696,1749057044847,-500.0,0.00023773,2]
[364279698,1749057044857,-151.0,0.00023799,2]
[364279700,1749057044867,-500.0,0.00023799,2]
[364279701,1749057044877,-500.0,0.00023799,2]
[364279704,1749057044886,-574.5663848,0.00023799,2]
[364279705,1749057044896,-574.5663848,0.00023799,2]
[364279707,1749057044905,-574.5663848,0.00023799,2]
[364279709,1749057044915,-574.5663848,0.00023799,2]
[364279710,1749057044925,-574.5663848,0.00023799,2]
[364279712,1749057044935,-574.5663848,0.00023799,2]
[364279714,1749057044944,-500.0,0.00023799,2]
[364279716,1749057044957,-574.5663848,0.00023799,2]
[364279718,1749057044966,-500.0,0.00023799,2]
[364279720,1749057044976,-500.0,0.00023799,2]
[364279721,1749057044985,-574.5663848,0.00023799,2]
[364279723,1749057044995,-574.5663848,0.00023799,2]
[364279725,1749057045006,-574.5663848,0.00023799,2]
[364279727,1749057045016,-500.0,0.00023799,2]
[364279729,1749057045025,-574.5663848,0.00023799,2]
[364279731,1749057045036,-574.5663848,0.00023799,2]
[364279733,1749057045046,-500.0,0.00023799,2]
[364279735,1749057045055,-574.5663848,0.00023799,2]
[364279737,1749057045064,-500.0,0.00023799,2]
[364279739,1749057045074,-574.5663848,0.00023799,2]
[364279741,1749057045083,-356.84047705,0.00023799,2]